bitfinex/quotes_SOLUSD_20250731
["timestamp","ask_amount","ask_price","bid_price","bid_amount"]
[1753982777092,0.03,177.73,177.72,14.48786944]
[1753982778042,0.03,177.73,177.72,0.68]
[1753982778204,0.03,177.73,177.72,14.48786944]
[1753982778519,0.03,177.73,177.67,1.24284122]
[1753982778701,13.80786944,177.71,177.65,26.68]
[1753982779026,13.80786944,177.71,177.66,55.38786944]
[1753982779323,13.80786944,177.7,177.66,0.68]
[1753982779524,0.03,177.73,177.66,0.68]
[1753982779710,13.80786944,177.69,177.64,61.09720822]
[1753982779911,13.80786944,177.69,177.64,55.46786944]
[1753982780094,13.80786944,177.65,177.64,41.66]
[1753982780294,13.80786944,177.67,177.64,41.66]
[1753982780594,13.80786944,177.65,177.6,0.68]
[1753982780801,13.80786944,177.62,177.59,41.64]
[1753982781039,13.80786944,177.63,177.59,42.32]
[1753982781198,13.80786944,177.63,177.59,41.64]
[1753982781401,13.80786944,177.63,177.6,0.68]
[1753982781718,13.80786944,177.63,177.59,47.27079743]
[1753982781917,13.80786944,177.68,177.62,13.80786944]
[1753982782103,13.80786944,177.68,177.63,13.80786944]
[1753982782301,1.27950316,177.7,177.63,13.80786944]
[1753982782598,13.80786944,177.69,177.64,13.80786944]
[1753982782809,13.80786944,177.69,177.64,14.48786944]
[1753982783011,13.80786944,177.69,177.65,0.68]
[1753982783417,1.30950316,177.73,177.66,14.48786944]
[1753982783718,13.80786944,177.71,177.66,20.1163662]
[1753982783918,0.75,177.73,177.67,14.48786944]
[1753982784223,17.49461564,177.73,177.68,14.48786944]
[1753982784402,13.83786944,177.73,177.69,0.68]
[1753982784732,13.80786944,177.72,177.67,13.80786944]
[1753982784896,13.80786944,177.72,177.67,14.48786944]
[1753982785425,13.80786944,177.72,177.68,0.68]
[1753982785592,13.80786944,177.72,177.68,13.80786944]
[1753982785918,13.83786944,177.73,177.68,19.43593619]
[1753982786226,0.03,177.73,177.69,14.48786944]
[1753982786402,13.83786944,177.73,177.69,0.68]
[1753982787424,13.83786944,177.73,177.69,14.48786944]
[1753982787621,0.03,177.73,177.7,0.68]
[1753982787817,13.83786944,177.73,177.68,13.80786944]
[1753982788021,13.80786944,177.72,177.68,13.80786944]
[1753982788324,0.03,177.73,177.69,14.48786944]
[1753982788520,13.83786944,177.73,177.69,0.68]
[1753982788694,13.83786944,177.73,177.69,14.48786944]
[1753982788895,13.83786944,177.73,177.68,13.80786944]
[1753982789324,13.83786944,177.73,177.68,14.48786944]
[1753982790010,13.83786944,177.73,177.68,20.17578353]
[1753982790205,13.80786944,177.7,177.68,0.06]
[1753982790423,13.80786944,177.69,177.68,0.06]
[1753982790624,14.52786944,177.69,177.68,0.06]
[1753982791127,31.31255341,177.69,177.68,0.06]
[1753982791325,31.87205657,177.69,177.68,0.06]
[1753982791635,31.87205657,177.69,177.68,1e-08]
[1753982791817,35.93379647,177.69,177.68,1e-08]
[1753982792013,41.56157518,177.69,177.68,1e-08]
[1753982792224,37.49983528,177.69,177.68,1e-08]
[1753982792530,20.71515131,177.69,177.68,1e-08]
[1753982794542,37.49983528,177.69,177.68,1e-08]
[1753982794838,37.49983528,177.69,177.64,0.06]
[1753982794839,16.78468397,177.68,177.64,0.06]
[1753982795028,13.80786944,177.65,177.64,0.06]
[1753982795632,14.51786944,177.65,177.64,0.06]
[1753982796144,5.62904587,177.65,177.64,0.06]
[1753982796304,14.3673726,177.65,177.64,0.06]
[1753982796737,13.80786944,177.65,177.64,0.06]
[1753982798021,0.55950316,177.67,177.64,0.06]
[1753982798224,13.80786944,177.66,177.64,0.06]
[1753982798556,0.55950316,177.71,177.65,14.50786944]
[1753982798713,13.80786944,177.69,177.65,0.7]
[1753982798912,13.80786944,177.69,177.64,13.86786944]
[1753982799134,13.80786944,177.7,177.66,0.7]
[1753982799336,13.80786944,177.7,177.65,13.80786944]
[1753982799643,13.80786944,177.69,177.66,0.7]
[1753982799845,0.55950316,177.72,177.66,0.7]
[1753982800054,13.80786944,177.7,177.66,0.7]
[1753982800211,0.03,177.73,177.68,13.80786944]
[1753982800411,0.03,177.73,177.69,14.50786944]
[1753982800642,0.03,177.73,177.7,13.80786944]
[1753982800818,0.03,177.73,177.7,0.7]
[1753982801136,0.03,177.73,177.69,13.80786944]
[1753982801336,0.03,177.73,177.69,14.50786944]
[1753982801543,0.03,177.73,177.67,6.19125344]
[1753982801544,13.83786944,177.73,177.68,13.80786944]
[1753982801711,13.83786944,177.73,177.69,14.50786944]
[1753982801915,0.03,177.73,177.72,13.80786944]
[1753982802114,0.03,177.73,177.72,19.43469815]
[1753982802345,0.03,177.73,177.72,20.13469815]
[1753982803137,0.03,177.73,177.72,0.7]
[1753982803529,0.03,177.73,177.72,14.50786944]
[1753982804128,0.03,177.73,177.72,20.13469815]
[1753982805827,6.18254219,177.84,177.72,34.20176994]
[1753982806037,13.80786944,177.84,177.79,13.80786944]
[1753982806242,0.71,177.84,177.79,13.80786944]
[1753982806427,0.71,177.84,177.73,41.42]
[1753982806428,13.80786944,177.8,177.74,5.62593866]
[1753982806634,0.71,177.81,177.74,5.62593866]
[1753982806833,13.80786944,177.78,177.73,19.43431493]
[1753982807041,13.80786944,177.78,177.73,20.13431493]
[1753982807241,13.80786944,177.79,177.74,14.50786944]
[1753982807426,13.80786944,177.79,177.75,0.7]
[1753982807630,0.71,177.81,177.75,0.7]
[1753982807631,13.80786944,177.8,177.75,14.50786944]
[1753982807947,13.80786944,177.8,177.73,5.62644549]
[1753982807948,1.26950316,177.83,177.76,14.50786944]
[1753982808123,13.80786944,177.81,177.76,14.50786944]
[1753982808321,13.80786944,177.81,177.76,20.13325013]
[1753982808747,1.26950316,177.83,177.76,20.13325013]
[1753982808748,13.80786944,177.82,177.77,13.80786944]
[1753982808954,6.89312173,177.83,177.78,14.50786944]
[1753982808955,14.3673726,177.83,177.78,14.50786944]
[1753982809259,13.80786944,177.83,177.79,13.80786944]
[1753982809481,13.80786944,177.82,177.77,13.80786944]
[1753982809776,14.51786944,177.83,177.78,13.80786944]
[1753982810049,13.80786944,177.83,177.77,0.7]
[1753982810255,13.80786944,177.83,177.78,19.43279874]
[1753982810465,0.71,177.85,177.77,6.32516977]
[1753982810640,13.80786944,177.83,177.78,13.80786944]
[1753982810945,0.55950316,177.84,177.78,13.80786944]
[1753982811159,0.55950316,177.84,177.77,20.13303921]
[1753982811457,0.55950316,177.84,177.77,6.32516977]
[1753982811628,0.03,177.86,177.83,13.80786944]
[1753982811825,0.03,177.86,177.83,14.50786944]
[1753982812131,0.03,177.86,177.82,13.80786944]
[1753982812322,5.65251302,177.86,177.8,6.32423187]
[1753982812530,13.80786944,177.84,177.8,0.7]
[1753982812940,13.83786944,177.83,177.78,55.18786944]
[1753982813144,13.80786944,177.82,177.78,41.38]
[1753982813728,0.03,177.83,177.78,41.38]
[1753982813729,13.83786944,177.83,177.78,55.18786944]
[1753982813956,13.80786944,177.82,177.78,42.08]
[1753982814157,13.80786944,177.82,177.78,61.51275004]
[1753982814455,0.03,177.83,177.79,14.50786944]
[1753982814634,0.03,177.83,177.82,13.80786944]
[1753982815063,0.03,177.83,177.82,14.50786944]
[1753982815562,0.03,177.83,177.78,61.06720482]
[1753982815563,13.83786944,177.83,177.78,46.9648806]
[1753982815770,5.65337651,177.83,177.78,41.34]
[1753982815928,0.74,177.83,177.78,41.34]
[1753982816126,5.65340153,177.83,177.78,42.04]
[1753982816354,13.80786944,177.81,177.78,42.04]
[1753982816763,13.80786944,177.82,177.78,42.04]
[1753982817671,13.80786944,177.81,177.78,42.04]
[1753982817957,13.80786944,177.79,177.72,14.50786944]
[1753982818135,13.80786944,177.77,177.75,41.32]
[1753982818955,13.80786944,177.79,177.75,46.94581966]
[1753982819149,13.80786944,177.79,177.76,0.7]
[1753982819549,13.80786944,177.78,177.75,46.94581966]
[1753982819749,13.80786944,177.8,177.76,0.7]
[1753982820055,13.80786944,177.81,177.77,0.7]
[1753982820230,5.65343678,177.83,177.78,14.50786944]
[1753982820428,4.0880591,177.82,177.81,13.80786944]
[1753982820656,0.03,177.83,177.81,55.80786944]
[1753982820840,0.03,177.83,177.82,15.07023587]
[1753982821463,0.03,177.83,177.82,0.56236643]
[1753982821644,13.83786944,177.83,177.8,41.38]
[1753982821959,13.80786944,177.81,177.8,41.38]
[1753982822284,5.65337563,177.83,177.8,41.38]
[1753982822285,0.03,177.83,177.8,55.88786944]
[1753982822441,0.03,177.83,177.81,0.7]
[1753982822629,0.03,177.83,177.8,41.94242969]
[1753982822834,13.80786944,177.81,177.79,88.0]
[1753982823044,0.03,177.83,177.76,0.7]
[1753982823045,13.80786944,177.8,177.76,0.7]
[1753982823242,13.80786944,177.78,177.73,14.50786944]
[1753982823439,13.80786944,177.77,177.74,41.38]
[1753982823652,13.80786944,177.78,177.74,41.38]
[1753982823860,13.80786944,177.78,177.74,42.08]
[1753982824062,13.80786944,177.79,177.74,55.88786944]
[1753982824249,13.80786944,177.79,177.74,42.08]
[1753982824563,13.80786944,177.78,177.74,41.38]
[1753982824762,13.80786944,177.76,177.74,41.36]
[1753982824971,13.80786944,177.77,177.74,41.36]
[1753982825356,13.80786944,177.78,177.74,42.02]
[1753982825939,13.80786944,177.77,177.74,41.36]
[1753982826566,13.80786944,177.76,177.74,41.36]
[1753982826745,13.80786944,177.77,177.74,41.36]
[1753982826938,13.80786944,177.77,177.72,26.0]
[1753982827271,27.61573888,177.73,177.68,0.06]
[1753982827439,13.80786944,177.69,177.68,0.06]
[1753982827639,30.59255341,177.69,177.68,0.06]
[1753982827869,31.83205657,177.69,177.68,0.06]
[1753982828046,30.59255341,177.67,177.66,0.06]
[1753982828367,40.86183909,177.67,177.66,0.06]
[1753982828586,40.86183909,177.67,177.64,0.06]
[1753982828587,26.0,177.65,177.64,0.06]
[1753982828792,61.23013039,177.65,177.64,0.06]
[1753982828991,57.83205657,177.65,177.64,0.06]
[1753982829483,14.3673726,177.65,177.64,0.06]
[1753982829677,13.80786944,177.65,177.64,0.06]
[1753982830972,1.23950316,177.69,177.64,0.06]
[1753982831176,13.80786944,177.65,177.64,0.06]
[1753982831801,14.48786944,177.65,177.64,0.06]
[1753982832092,31.27255341,177.65,177.64,0.06]
[1753982832265,37.46110244,177.65,177.64,0.06]
[1753982833171,62.13641847,177.65,177.64,0.06]
[1753982833486,14.3673726,177.65,177.64,0.06]
[1753982833997,13.80786944,177.65,177.64,0.06]
[1753982835070,0.55950316,177.68,177.64,0.06]
[1753982835381,13.80786944,177.65,177.64,0.06]
[1753982835687,6.18769505,177.68,177.64,0.06]
[1753982835688,13.80786944,177.66,177.64,0.06]
[1753982835998,13.80786944,177.67,177.64,0.06]
[1753982836297,6.30588573,177.75,177.66,13.80786944]
[1753982836468,6.30588573,177.75,177.69,13.80786944]
[1753982836469,14.3673726,177.74,177.69,13.80786944]
[1753982836797,13.80786944,177.73,177.69,14.46786944]
[1753982837167,13.80786944,177.72,177.69,0.66]
[1753982837680,13.80786944,177.73,177.69,0.66]
[1753982837893,14.3673726,177.74,177.69,14.46786944]
[1753982838071,14.3673726,177.74,177.67,6.19121726]
[1753982838072,14.3673726,177.75,177.7,14.46786944]
[1753982838673,13.80786944,177.73,177.68,0.66]
[1753982838993,13.80786944,177.74,177.69,13.80786944]
[1753982839198,13.80786944,177.74,177.7,0.66]
[1753982839398,13.80786944,177.72,177.66,26.0]
[1753982839576,13.80786944,177.72,177.67,13.80786944]
[1753982839807,13.80786944,177.72,177.68,0.66]
[1753982840080,13.80786944,177.71,177.68,0.66]
[1753982840281,13.80786944,177.71,177.67,13.80786944]
[1753982840474,13.80786944,177.71,177.64,0.06]
[1753982840475,13.80786944,177.68,177.64,0.06]
[1753982840799,13.80786944,177.65,177.64,0.06]
[1753982841000,14.48786944,177.65,177.64,0.06]
[1753982842372,13.80786944,177.65,177.64,0.06]
[1753982842684,13.80786944,177.66,177.64,0.06]
[1753982843588,13.80786944,177.65,177.64,0.06]
[1753982843796,14.48786944,177.65,177.64,0.06]
[1753982844091,13.80786944,177.65,177.64,0.06]
[1753982844597,13.80786944,177.66,177.64,88.06]
[1753982844828,0.55950316,177.7,177.65,14.46786944]
[1753982844977,0.55950316,177.72,177.69,13.80786944]
[1753982845178,13.80786944,177.74,177.7,0.66]
[1753982845380,13.80786944,177.71,177.66,0.66]
[1753982845600,13.80786944,177.69,177.64,61.52012826]
[1753982845801,13.80786944,177.69,177.65,0.66]
[1753982846007,13.80786944,177.7,177.64,47.71225882]
[1753982846184,13.80786944,177.7,177.66,0.66]
[1753982846696,13.80786944,177.75,177.69,13.80786944]
[1753982846899,0.55950316,177.78,177.73,13.80786944]
[1753982847097,13.80786944,177.8,177.74,15.03048899]
[1753982847406,0.55950316,177.79,177.75,13.80786944]
[1753982847594,14.3673726,177.81,177.76,14.46786944]
[1753982847799,13.80786944,177.81,177.76,13.80786944]
[1753982848098,0.03,177.83,177.79,13.80786944]
[1753982848297,0.03,177.83,177.8,13.80786944]
[1753982848508,0.03,177.83,177.8,14.46786944]
[1753982848678,0.03,177.83,177.8,20.09206285]
[1753982848878,0.03,177.83,177.8,14.46786944]
[1753982849514,0.03,177.83,177.81,0.66]
[1753982850283,0.03,177.83,177.8,13.80786944]
[1753982850699,0.03,177.83,177.8,14.46786944]
[1753982850877,13.83786944,177.83,177.77,0.56252461]
[1753982851086,513.80786944,177.82,177.76,60.91317147]
[1753982851410,13.80786944,177.81,177.76,62.13572772]
[1753982851625,13.80786944,177.79,177.76,41.48]
[1753982851926,13.80786944,177.78,177.73,55.92786944]
[1753982852098,13.80786944,177.78,177.74,26.66]
[1753982852490,13.80786944,177.78,177.74,32.28608314]
[1753982852731,13.80786944,177.76,177.73,41.46]
[1753982852890,13.80786944,177.77,177.73,41.46]
[1753982853096,13.80786944,177.78,177.74,0.66]
[1753982853530,500.0,177.82,177.77,13.80786944]
[1753982853693,500.0,177.82,177.79,13.80786944]
[1753982853891,500.0,177.82,177.78,0.66]
[1753982853892,500.0,177.82,177.81,13.80786944]
[1753982854115,500.0,177.82,177.8,13.80786944]
[1753982854517,500.0,177.82,177.79,5.62437808]
[1753982854689,513.80786944,177.82,177.78,55.26786944]
[1753982855723,500.0,177.82,177.78,61.56275217]
[1753982855898,500.0,177.82,177.78,55.26786944]
[1753982856221,13.80786944,177.81,177.78,41.46]
[1753982856813,520.14159225,177.82,177.78,41.46]
[1753982857104,514.51786944,177.82,177.78,41.46]
[1753982857291,500.0,177.82,177.78,55.26786944]
[1753982857497,500.03,177.82,177.78,55.26786944]
[1753982857923,500.03,177.82,177.78,41.46]
[1753982858125,500.03,177.82,177.81,13.80786944]
[1753982858301,500.03,177.82,177.81,14.47786944]
[1753982859016,500.03,177.82,177.8,5.62414299]
[1753982859324,500.03,177.82,177.81,13.80786944]
[1753982859891,500.03,177.82,177.81,55.87786944]
[1753982860604,500.03,177.82,177.81,55.20786944]
[1753982860808,500.03,177.82,177.81,41.4]
[1753982861007,500.74,177.82,177.81,41.4]
[1753982861203,500.03,177.82,177.81,41.4]
[1753982861502,500.03,177.82,177.81,47.02398065]
[1753982861697,500.03,177.82,177.81,41.4]
[1753982861896,500.03,177.82,177.81,61.50185009]
[1753982862129,500.03,177.82,177.81,41.4]
[1753982862422,500.03,177.82,177.81,61.50185009]
[1753982863402,500.03,177.82,177.81,78.28653406]
[1753982864718,470.31706528,177.82,177.81,78.22653406]
[1753982864926,396.99895675,177.82,177.81,102.0344035]
[1753982865125,197.29362315,177.82,177.81,102.0344035]
[1753982865310,138.56725239,177.82,177.81,190.0344035]
[1753982865510,33.06961327,177.82,177.81,190.0344035]
[1753982865908,0.03,177.86,177.85,16.78468397]
[1753982866112,0.03,177.86,177.85,160.49482498]
[1753982866113,1e-08,177.86,177.85,160.49482498]
[1753982866319,1e-08,177.86,177.85,159.93255341]
[1753982866506,1e-08,177.89,177.88,56.59255341]
[1753982866710,1e-08,177.89,177.88,98.47473015]
[1753982866930,0.03,177.96,177.92,48.40518756]
[1753982867129,692.6913238,177.93,177.92,103.553057]
[1753982867433,692.6913238,177.93,177.92,104.11510735]
[1753982867629,530.76581796,177.93,177.92,117.92297679]
[1753982867828,492.33495797,177.93,177.92,205.36092644]
[1753982868035,455.09336135,177.93,177.92,191.553057]
[1753982868214,376.22626457,177.93,177.92,215.36092644]
[1753982868407,338.77586819,177.93,177.92,215.36092644]
[1753982868610,139.63411605,177.93,177.92,215.36092644]
[1753982868932,62.3091139,177.93,177.92,215.36092644]
[1753982869135,62.3091139,177.93,177.92,201.553057]
[1753982869641,3.27581263,177.93,177.92,136.40518756]
[1753982869842,3.27581263,177.93,177.92,191.513057]
[1753982870024,3.27581263,177.93,177.92,103.513057]
[1753982870225,0.03,177.96,177.95,56.59255341]
[1753982870411,0.03,177.96,177.95,98.47450901]
[1753982871115,0.74,177.96,177.95,81.66982504]
[1753982871308,0.74,177.96,177.95,67.8619556]
[1753982871506,0.74,177.96,177.95,67.3]
[1753982872139,14.54786944,177.96,177.95,41.3]
[1753982872347,0.03,177.96,177.95,41.3]
[1753982872658,14.54786944,177.96,177.88,0.56217674]
[1753982872807,13.80786944,177.95,177.9,13.80786944]
[1753982873010,13.80786944,177.95,177.89,58.10468397]
[1753982873011,0.71,177.95,177.94,26.0]
[1753982873325,14.51786944,177.95,177.94,67.32]
[1753982873519,14.51786944,177.95,177.94,41.32]
[1753982873726,0.71,177.95,177.94,41.32]
[1753982874430,14.51786944,177.95,177.94,41.32]
[1753982874626,14.54786944,177.95,177.94,41.32]
[1753982875419,13.83786944,177.95,177.94,41.32]
[1753982875831,14.54786944,177.95,177.94,41.32]
[1753982876831,0.03,177.95,177.94,41.32]
[1753982877029,0.03,177.95,177.94,67.32]
[1753982877318,14.54786944,177.95,177.9,0.56211354]
[1753982877535,13.80786944,177.91,177.9,26.0]
[1753982877717,14.51786944,177.91,177.9,67.3]
[1753982878223,14.51786944,177.91,177.84,40.52]
[1753982878430,13.80786944,177.86,177.85,41.3]
[1753982878819,14.51786944,177.86,177.85,41.3]
[1753982879023,14.51786944,177.89,177.85,41.3]
[1753982879221,13.80786944,177.9,177.88,26.0]
[1753982879417,13.80786944,177.9,177.89,41.3]
[1753982879630,0.71,177.93,177.89,41.3]
[1753982879965,13.80786944,177.93,177.9,0.56211354]
[1753982880117,13.80786944,177.93,177.91,41.3]
[1753982880318,13.80786944,177.93,177.83,0.06]
[1753982880319,26.0,177.89,177.83,0.06]
[1753982880528,27.61573888,177.84,177.77,88.0]
[1753982880850,27.61573888,177.84,177.73,148.8]
[1753982880851,13.80786944,177.78,177.73,88.0]
[1753982881019,13.80786944,177.75,177.74,41.38]
[1753982881224,14.51786944,177.75,177.74,129.38]
[1753982881654,13.80786944,177.75,177.74,129.38]
[1753982881855,14.51786944,177.75,177.74,129.38]
[1753982882852,0.71,177.78,177.74,129.38]
[1753982883054,13.80786944,177.76,177.74,135.00619556]
[1753982883428,13.80786944,177.75,177.74,135.00619556]
[1753982884025,14.51786944,177.75,177.74,41.38]
[1753982884749,13.80786944,177.75,177.74,41.38]
[1753982885048,14.51786944,177.75,177.74,47.00619556]
[1753982885250,0.71,177.78,177.74,47.00619556]
[1753982885542,13.80786944,177.75,177.74,5.62619556]
[1753982886840,0.71,177.79,177.74,5.62619556]
[1753982887044,13.80786944,177.76,177.75,41.32]
[1753982887434,13.80786944,177.78,177.75,46.94587904]
[1753982887630,13.80786944,177.79,177.77,26.0]
[1753982887940,13.80786944,177.8,177.78,41.3]
[1753982888126,13.80786944,177.79,177.78,41.3]
[1753982888445,14.51786944,177.79,177.78,41.3]
[1753982888750,13.80786944,177.81,177.78,41.3]
[1753982888945,0.71,177.82,177.8,26.0]
[1753982889151,13.80786944,177.82,177.81,41.3]
[1753982889344,0.71,177.85,177.81,129.3]
[1753982889526,13.80786944,177.82,177.81,88.0]
[1753982889726,14.51786944,177.82,177.81,41.3]
[1753982890141,14.51786944,177.82,177.8,41.32]
[1753982890345,14.51786944,177.81,177.8,41.32]
[1753982891642,14.51786944,177.81,177.77,41.32]
[1753982891947,13.80786944,177.78,177.75,41.3]
[1753982892245,1.26950316,177.8,177.75,41.3]
[1753982892246,13.80786944,177.76,177.75,41.3]
[1753982893341,0.71,177.76,177.68,31.25255341]
[1753982893530,13.80786944,177.74,177.72,26.0]
[1753982893730,13.80786944,177.74,177.73,47.00651212]
[1753982894157,0.71,177.8,177.73,62.03703277]
[1753982894359,13.80786944,177.79,177.76,26.0]
[1753982894529,13.80786944,177.8,177.77,41.96252461]
[1753982894733,13.80786944,177.79,177.77,41.96252461]
[1753982895149,13.80786944,177.82,177.77,56.43039405]
[1753982895331,0.55950316,177.86,177.76,26.0]
[1753982895332,13.80786944,177.78,177.76,26.0]
[1753982895536,14.51786944,177.77,177.73,5.62651212]
[1753982895839,13.80786944,177.74,177.72,26.0]
[1753982896029,0.71,177.76,177.73,41.42]
[1753982896225,0.55950316,177.78,177.73,41.42]
[1753982896430,0.71,177.77,177.73,41.42]
[1753982896630,0.71,177.76,177.73,41.42]
[1753982896839,0.71,177.75,177.73,41.42]
[1753982897054,0.71,177.78,177.73,41.42]
[1753982897268,13.80786944,177.74,177.73,41.42]
[1753982897438,13.80786944,177.74,177.73,41.4]
[1753982898144,14.51786944,177.74,177.71,26.0]
[1753982898335,13.80786944,177.72,177.69,40.52]
[1753982898533,13.80786944,177.7,177.64,0.06]
[1753982898756,1.26950316,177.71,177.64,0.06]
[1753982898757,1.26950316,177.71,177.65,41.42]
[1753982898937,13.80786944,177.68,177.65,41.42]
[1753982899140,0.71,177.71,177.65,41.42]
[1753982899448,0.55950316,177.75,177.65,41.98290458]
[1753982899449,13.80786944,177.69,177.65,41.98290458]
[1753982899752,0.55950316,177.75,177.65,41.98290458]
[1753982899753,13.80786944,177.68,177.67,26.0]
[1753982899957,13.80786944,177.68,177.67,67.42]
[1753982900335,0.71,177.75,177.67,68.64284122]
[1753982900537,0.55950316,177.76,177.67,68.64284122]
[1753982900538,13.80786944,177.69,177.67,67.42]
[1753982900738,13.80786944,177.69,177.68,41.4]
[1753982901054,0.55950316,177.76,177.68,42.06]
[1753982901249,13.80786944,177.71,177.68,130.06]
[1753982901443,13.80786944,177.7,177.68,129.4]
[1753982902065,13.80786944,177.7,177.69,5.62777871]
[1753982902436,14.51786944,177.7,177.69,41.4]
[1753982902631,14.51786944,177.7,177.68,88.0]
[1753982902864,13.80786944,177.69,177.67,114.06]
[1753982903042,0.71,177.73,177.68,41.4]
[1753982903237,13.80786944,177.69,177.68,41.4]
[1753982904060,14.51786944,177.69,177.67,88.06]
[1753982904265,0.71,177.69,177.68,41.38]
[1753982904767,0.71,177.69,177.67,0.06]
[1753982905064,6.18669772,177.71,177.67,0.06]
[1753982905449,6.18669772,177.71,177.68,41.38]
[1753982905450,0.71,177.7,177.68,41.38]
[1753982905649,15.0773726,177.69,177.68,41.38]
[1753982905953,5.62809545,177.68,177.67,41.42]
[1753982906154,20.70546805,177.68,177.67,41.42]
[1753982906354,20.70546805,177.68,177.67,0.06]
[1753982906857,11.04362498,177.68,177.67,0.06]
[1753982907059,9.77412182,177.68,177.67,0.06]
[1753982907445,10.48412182,177.68,177.67,0.06]
[1753982907960,16.67172043,177.68,177.67,0.06]
[1753982908139,26.44584225,177.68,177.64,41.42]
[1753982908338,19.54824364,177.65,177.64,0.06]
[1753982908638,19.54824364,177.65,177.6,41.4]
[1753982908847,0.55950316,177.66,177.6,41.4]
[1753982909040,0.55950316,177.69,177.61,1.22303136]
[1753982909360,0.55950316,177.69,177.6,41.4]
[1753982909361,9.77412182,177.62,177.6,41.4]
[1753982909568,9.77412182,177.61,177.57,0.66]
[1753982909767,9.77412182,177.6,177.58,41.42]
[1753982909947,9.77412182,177.61,177.59,6.29094768]
[1753982910153,9.77412182,177.62,177.6,0.66]
[1753982910476,9.77412182,177.63,177.62,26.0]
[1753982910653,9.77412182,177.63,177.59,5.63094768]
[1753982910843,20.25570748,177.7,177.57,47.07158191]
[1753982910844,9.77412182,177.6,177.57,47.07158191]
[1753982911036,9.77412182,177.58,177.57,73.73158191]
[1753982911242,9.77412182,177.58,177.57,41.44]
[1753982912148,9.77412182,177.58,177.57,47.07158191]
[1753982913074,0.55950316,177.67,177.6,26.0]
[1753982913254,9.77412182,177.62,177.61,41.42]
[1753982913657,0.55950316,177.7,177.61,41.42]
[1753982913860,9.77412182,177.65,177.61,42.08]
[1753982914063,9.77412182,177.64,177.62,0.66]
[1753982914368,0.72,177.67,177.63,5.62967967]
[1753982914542,0.72,177.69,177.64,41.44]
[1753982914893,9.77412182,177.65,177.64,41.44]
[1753982915069,0.72,177.68,177.64,41.44]
[1753982915241,9.77412182,177.65,177.64,41.44]
[1753982915583,27.27950316,177.73,177.64,42.1]
[1753982915738,26.72,177.72,177.61,5.6302328]
[1753982915939,26.0,177.7,177.61,5.6302328]
[1753982916146,6.90748224,177.69,177.62,47.06982281]
[1753982916376,9.77412182,177.63,177.62,47.06982281]
[1753982916667,6.90748224,177.69,177.62,47.06999662]
[1753982916847,9.77412182,177.64,177.62,47.06999662]
[1753982917042,9.77412182,177.63,177.62,47.06999662]
[1753982917243,9.77412182,177.63,177.62,41.44]
[1753982917444,10.49412182,177.63,177.58,26.0]
[1753982917646,9.77412182,177.59,177.56,0.1]
[1753982917844,9.77412182,177.57,177.56,0.1]
[1753982918251,9.77412182,177.57,177.56,41.64]
[1753982919082,9.77412182,177.57,177.56,47.27189907]
[1753982919752,9.77412182,177.58,177.56,73.93189907]
[1753982919954,9.77412182,177.57,177.56,67.64]
[1753982920339,9.77412182,177.57,177.56,0.1]
[1753982920689,16.12570373,177.57,177.56,0.1]
[1753982920981,10.49412182,177.57,177.56,0.1]
[1753982921180,16.12570373,177.57,177.56,0.1]
[1753982921345,10.49412182,177.57,177.56,0.1]
[1753982921877,16.12570373,177.57,177.56,0.1]
[1753982922179,10.49412182,177.57,177.56,0.1]
[1753982922346,10.49412182,177.57,177.46,5.63483595]
[1753982922347,52.45932871,177.57,177.46,5.63483595]
[1753982922544,9.77412182,177.47,177.46,5.63483595]
[1753982922747,9.77412182,177.47,177.44,5.63559167]
[1753982922967,0.72,177.51,177.44,5.63559167]
[1753982922968,9.77412182,177.45,177.44,5.63559167]
[1753982923253,9.77412182,177.45,177.44,73.17559167]